[Event "RUS-ch Men Rapid 2019"]
[Site "Sochi"]
[Date "2019.10.16"]
[Round "11.3"]
[White "Oganian, Miran"]
[Black "Bocharov, Dmitry"]
[Result "0-1"]
[ECO "A40"]
[WhiteElo "2436"]
[BlackElo "2519"]
[Annotator "RC"]
[PlyCount "136"]
[EventDate "2019.10.15"]
[EventType "swiss"]
[EventCountry "RUS"]
[SourceTitle "playchess.com"]
[Source "ChessBase"]
[SourceQuality "1"]
[TimeControl "900+10"]

1. d4 {[%emt 0:00:00]} Nf6 {[%emt 0:00:00]} 2. c4 {[%emt 0:00:00]} e6 {[%emt 0:00:00]} 3. g3 {[%emt 0:00:00]} d5 {[%emt 0:00:00]} 4. Nf3 {[%emt 0:00:00]} Bb4+ {[%emt 0:00:00]} 5. Bd2 {[%emt 0:00:00]} Be7 {[%emt 0:00:00]} 6. Bg2 {[%emt 0:00:00]} O-O {[%emt 0:00:00]} 7. O-O {[%emt 0:00:00]} Nbd7 {[%emt 0:00:00]} 8. Qc2 {[%emt 0:00:00]} Ne4 {[%emt 0:00:00]} 9. Nc3 {[%emt 0:01:02]} Nxd2 {[%emt 0:00:09]} 10. Nxd2 {[%emt 0:00:04]} c6 {[%emt 0:00:02]} 11. e4 {[%emt 0:00:19]} dxc4 {[%emt 0:00:24]} 12. Nxc4 {[%emt 0:00:07]} b5 {[%emt 0:00:37]} 13. Ne3 {[%emt 0:00:36]} Qb6 {[%emt 0:00:20]} 14. Rfd1 {[%emt 0:00:08]} Rb8 {[%emt 0:00:49]} 15. Rac1 {[%emt 0:01:16]} c5 {[%emt 0:01:50]} 16. d5 {[%emt 0:02:34]} c4 {[%emt 0:03:39]} 17. b3 {[%emt 0:01:58]} Bc5 {[%emt 0:00:30]} 18. Re1 {[%emt 0:02:01]} cxb3 {[%emt 0:02:23]} 19. Qxb3 {[%emt 0:02:08]} Ne5 {[%emt 0:01:45]} 20. Rcd1 {[%emt 0:00:07]} Bd7 {[%emt 0:01:31]} 21. dxe6 {[%emt 0:01:49]} Bxe6 {[%emt 0:01:08]} 22. Ncd5 {[%emt 0:00:19]} Qa5 {[%emt 0:01:03]} 23. Rc1 {[%emt 0:01:30]} Rfc8 {[%emt 0:00:20]} 24. Red1 {[%emt 0:00:54]} Kh8 {[%emt 0:00:36]} 25. Rb1 {[%emt 0:00:54]} h6 {[%emt 0:00:19]} 26. h3 {[%emt 0:00:07]} b4 {[%emt 0:00:54]} 27. Nf5 {[%emt 0:00:27]} Bf8 {[%emt 0:00:12]} 28. Nd4 {[%emt 0:00:25]} Bd7 {[%emt 0:00:09]} 29. Rdc1 {[%emt 0:00:21]} Rxc1+ {[%emt 0:00:34]} 30. Rxc1 {[%emt 0:00:01]} Rc8 {[%emt 0:00:01]} 31. Rxc8 {[%emt 0:00:22]} Bxc8 {[%emt 0:00:02]} 32. Nc2 {[%emt 0:00:08]} Nc6 {[%emt 0:00:07]} 33. Qc4 {[%emt 0:00:22]} Qc5 {[%emt 0:00:12]} 34. Qb3 {[%emt 0:00:17]} a5 {[%emt 0:00:04]} 35. Bf1 {[%emt 0:00:05]} Be6 {[%emt 0:00:06]} 36. Nce3 {[%emt 0:00:23]} Nd4 {[%emt 0:00:21]} 37. Qd1 {[%emt 0:00:08]} Kg8 {[%emt 0:00:13]} 38. Bc4 {[%emt 0:00:04]} Bxh3 {[%emt 0:00:08]} 39. Nf4 {[%emt 0:00:03]} Bc8 {[%emt 0:00:07]} 40. Bd5 {[%emt 0:00:19]} Ne6 {[%emt 0:00:26]} 41. Bxe6 {[%emt 0:00:13]} Bxe6 {[%emt 0:00:08]} 42. Nxe6 {[%emt 0:00:05]} fxe6 {[%emt 0:00:01]} 43. Qd7 {[%emt 0:00:01]} Qe5 {[%emt 0:00:06]} 44. Qc6 {[%emt 0:00:31]} Bc5 {[%emt 0:00:02]} 45. Nf1 {[%emt 0:00:10]} Kh7 {[%emt 0:00:04]} 46. Kg2 {[%emt 0:00:01]} a4 {[%emt 0:00:06]} 47. Nd2 {[%emt 0:00:10]} Qd4 {[%emt 0:00:06]} 48. Qxe6 {[%emt 0:00:08]} Qxf2+ {[%emt 0:00:02]} 49. Kh3 {[%emt 0:00:01]} Be3 {[%emt 0:00:19]} 50. Nc4 {[%emt 0:00:11]} Qf1+ {[%emt 0:00:03]} 51. Kg4 {[%emt 0:00:05]} Qd1+ {[%emt 0:00:27]} 52. Kh3 {[%emt 0:00:11]} Qh1+ {[%emt 0:00:35]} 53. Kg4 {[%emt 0:00:00]} h5+ {[%emt 0:00:07]} 54. Kf5 {[%emt 0:00:01]} Qh3+ {[%emt 0:00:01]} 55. Ke5 {[%emt 0:00:03]} Bd4+ {[%emt 0:00:03]} 56. Kd5 {[%emt 0:00:04]} Qxe6+ {[%emt 0:00:15]} 57. Kxe6 {[%emt 0:00:02]} b3 {[%emt 0:00:07]} 58. axb3 {[%emt 0:00:41]} axb3 {[%emt 0:00:01]} 59. Kd5 {[%emt 0:00:04]} b2 {[%emt 0:00:07]} 60. Na3 {[%emt 0:00:09]} Bf2 {[%emt 0:00:08]} 61. e5 {[%emt 0:00:02]} Bxg3 {[%emt 0:00:04]} 62. e6 {[%emt 0:00:01]} Kg8 {[%emt 0:00:05]} 63. Kc6 {[%emt 0:00:03]} Kf8 {[%emt 0:00:07]} 64. Kd7 {[%emt 0:00:01]} Bh4 {[%emt 0:00:01]} 65. Nb1 {[%emt 0:00:04]} Bf6 {[%emt 0:00:04]} 66. Nc3 {[%emt 0:00:47]} h4 {[%emt 0:00:03]} 67. Nd5 {[%emt 0:00:44]} b1=Q {[%emt 0:00:07]} 68. Nxf6 {[%emt 0:00:02]} Qd3+ {[%emt 0:00:05]} 0-1

[Event "RUS-ch Men Rapid 2019"]
[Site "Sochi"]
[Date "2019.10.16"]
[Round "11.6"]
[White "Lysyj, Igor"]
[Black "Nozdrachev, Vladislav"]
[Result "1/2-1/2"]
[ECO "E06"]
[WhiteElo "2596"]
[BlackElo "2494"]
[Annotator "ChessBase"]
[PlyCount "75"]
[EventDate "2019.10.15"]
[EventType "swiss"]
[EventCountry "RUS"]
[SourceTitle "playchess.com"]
[Source "ChessBase"]
[SourceQuality "1"]
[TimeControl "900+10"]

1. d4 {[%emt 0:00:00]} Nf6 {[%emt 0:00:00]} 2. c4 {[%emt 0:00:00]} e6 {[%emt 0:00:00]} 3. Nf3 {[%emt 0:00:00]} d5 {[%emt 0:00:00]} 4. g3 {[%emt 0:00:00]} Be7 {[%emt 0:00:07]} 5. Bg2 {[%emt 0:00:00]} O-O {[%emt 0:00:02]} 6. O-O {[%emt 0:00:06]} dxc4 {[%emt 0:00:02]} 7. Ne5 {[%emt 0:00:01]} Nc6 {[%emt 0:00:13]} 8. Bxc6 {[%emt 0:00:02]} bxc6 {[%emt 0:00:01]} 9. Nxc6 {[%emt 0:00:01]} Qe8 {[%emt 0:00:00]} 10. Nxe7+ {[%emt 0:00:02]} Qxe7 {[%emt 0:00:02]} 11. Nc3 {[%emt 0:00:02]} c5 {[%emt 0:00:45]} 12. dxc5 {[%emt 0:00:02]} Qxc5 {[%emt 0:00:18]} 13. Be3 {[%emt 0:00:01]} Qc6 {[%emt 0:00:19]} 14. Qa4 {[%emt 0:00:02]} Bb7 {[%emt 0:00:21]} 15. Qxc6 {[%emt 0:00:25]} Bxc6 {[%emt 0:00:01]} 16. Rfd1 {[%emt 0:00:48]} Nd5 {[%emt 0:00:03]} 17. Rd4 {[%emt 0:04:10]} Nxc3 {[%emt 0:00:34]} 18. bxc3 {[%emt 0:00:01]} Bd5 {[%emt 0:00:40]} 19. Rad1 {[%emt 0:01:08]} f5 {[%emt 0:01:30]} 20. Bf4 {[%emt 0:00:12]} Rac8 {[%emt 0:00:02]} 21. f3 {[%emt 0:00:30]} Rfe8 {[%emt 0:00:49]} 22. Be5 {[%emt 0:01:22]} Rc5 {[%emt 0:00:16]} 23. Bd6 {[%emt 0:00:37]} Ra5 {[%emt 0:00:09]} 24. R1d2 {[%emt 0:00:17]} Rb5 {[%emt 0:03:57]} 25. e4 {[%emt 0:01:18]} fxe4 {[%emt 0:00:01]} 26. fxe4 {[%emt 0:00:01]} Rb1+ {[%emt 0:00:08]} 27. Kf2 {[%emt 0:00:03]} Bb7 {[%emt 0:00:03]} 28. Rxc4 {[%emt 0:00:49]} Rh1 {[%emt 0:00:34]} 29. h4 {[%emt 0:02:18]} Rd8 {[%emt 0:00:02]} 30. Rcd4 {[%emt 0:00:32]} Bxe4 {[%emt 0:00:20]} 31. Rxe4 {[%emt 0:00:48]} Rh2+ {[%emt 0:00:01]} 32. Ke3 {[%emt 0:00:00]} Rxd2 {[%emt 0:00:01]} 33. Kxd2 {[%emt 0:00:01]} Rxd6+ {[%emt 0:00:01]} 34. Ke3 {[%emt 0:00:06]} Ra6 {[%emt 0:00:14]} 35. a4 {[%emt 0:00:10]} Kf7 {[%emt 0:00:02]} 36. g4 {[%emt 0:00:58]} Ra5 {[%emt 0:00:13]} 37. Rb4 {[%emt 0:00:18]} h6 {[%emt 0:00:35]} 38. Rc4 {[%emt 0:01:08]} 1/2-1/2

[Event "RUS-ch Men Rapid 2019"]
[Site "Sochi"]
[Date "2019.10.16"]
[Round "11.7"]
[White "Lugovskoy, Maxim"]
[Black "Timofeev, Artyom"]
[Result "0-1"]
[ECO "A45"]
[WhiteElo "2436"]
[BlackElo "2595"]
[Annotator "ChessBase"]
[PlyCount "110"]
[EventDate "2019.10.15"]
[EventType "swiss"]
[EventCountry "RUS"]
[SourceTitle "playchess.com"]
[Source "ChessBase"]
[SourceQuality "1"]
[TimeControl "900+10"]

1. d4 {[%emt 0:00:00]} Nf6 {[%emt 0:00:00]} 2. Nc3 {[%emt 0:00:00]} c5 {[%emt 0:00:02]} 3. d5 {[%emt 0:00:08]} e5 {[%emt 0:00:09]} 4. dxe6 {[%emt 0:00:23]} fxe6 {[%emt 0:00:10]} 5. e4 {[%emt 0:00:02]} d5 {[%emt 0:00:05]} 6. exd5 {[%emt 0:00:08]} exd5 {[%emt 0:00:03]} 7. Bg5 {[%emt 0:00:47]} Be7 {[%emt 0:00:20]} 8. Bb5+ {[%emt 0:00:41]} Nc6 {[%emt 0:00:12]} 9. Bxf6 {[%emt 0:01:29]} Bxf6 {[%emt 0:00:02]} 10. Nxd5 {[%emt 0:00:02]} Bxb2 {[%emt 0:00:18]} 11. Rb1 {[%emt 0:00:15]} Bd4 {[%emt 0:00:10]} 12. Qe2+ {[%emt 0:00:53]} Kf8 {[%emt 0:00:02]} 13. Qf3+ {[%emt 0:00:11]} Bf6 {[%emt 0:00:04]} 14. Bxc6 {[%emt 0:01:35]} bxc6 {[%emt 0:00:03]} 15. Nxf6 {[%emt 0:01:48]} Qxf6 {[%emt 0:00:03]} 16. Rd1 {[%emt 0:00:59]} Be6 {[%emt 0:01:03]} 17. Qe3 {[%emt 0:02:47]} Bxa2 {[%emt 0:00:17]} 18. Qxc5+ {[%emt 0:00:30]} Qe7+ {[%emt 0:00:02]} 19. Qxe7+ {[%emt 0:00:08]} Kxe7 {[%emt 0:00:01]} 20. Nf3 {[%emt 0:00:15]} Bd5 {[%emt 0:00:05]} 21. O-O {[%emt 0:00:13]} Bxf3 {[%emt 0:00:06]} 22. gxf3 {[%emt 0:00:02]} Rhd8 {[%emt 0:00:01]} 23. Rfe1+ {[%emt 0:00:07]} Kf6 {[%emt 0:00:05]} 24. Ra1 {[%emt 0:00:12]} a5 {[%emt 0:00:02]} 25. Re4 {[%emt 0:00:01]} Rd5 {[%emt 0:00:05]} 26. Rc4 {[%emt 0:00:33]} Ra6 {[%emt 0:00:09]} 27. Raa4 {[%emt 0:00:28]} Ke6 {[%emt 0:00:23]} 28. Rh4 {[%emt 0:00:19]} h6 {[%emt 0:00:08]} 29. Rhe4+ {[%emt 0:00:25]} Re5 {[%emt 0:00:06]} 30. Red4 {[%emt 0:00:06]} Rc5 {[%emt 0:00:04]} 31. c4 {[%emt 0:00:10]} Rb6 {[%emt 0:00:15]} 32. Ra1 {[%emt 0:00:36]} Rb4 {[%emt 0:00:07]} 33. Re4+ {[%emt 0:00:07]} Kf5 {[%emt 0:00:09]} 34. Re7 {[%emt 0:00:07]} Rbxc4 {[%emt 0:00:04]} 35. Kg2 {[%emt 0:00:21]} Kf6 {[%emt 0:00:04]} 36. Ra7 {[%emt 0:00:11]} Rg5+ {[%emt 0:00:03]} 37. Kf1 {[%emt 0:00:30]} Rcc5 {[%emt 0:00:02]} 38. h4 {[%emt 0:00:01]} Rgf5 {[%emt 0:00:33]} 39. Kg2 {[%emt 0:00:03]} Rc3 {[%emt 0:00:13]} 40. R1xa5 {[%emt 0:00:12]} Rcxf3 {[%emt 0:00:03]} 41. Ra2 {[%emt 0:00:07]} R3f4 {[%emt 0:01:27]} 42. Rc7 {[%emt 0:00:12]} Rxh4 {[%emt 0:00:26]} 43. Rxc6+ {[%emt 0:00:01]} Kg5 {[%emt 0:00:03]} 44. Ra3 {[%emt 0:01:11]} Rg4+ {[%emt 0:01:11]} 45. Rg3 {[%emt 0:00:02]} Rff4 {[%emt 0:00:04]} 46. Rc5+ {[%emt 0:00:57]} Kg6 {[%emt 0:00:12]} 47. f3 {[%emt 0:00:13]} Rxg3+ {[%emt 0:00:14]} 48. Kxg3 {[%emt 0:00:01]} Rf5 {[%emt 0:00:09]} 49. Rc7 {[%emt 0:00:12]} Ra5 {[%emt 0:00:22]} 50. f4 {[%emt 0:00:10]} Ra3+ {[%emt 0:00:12]} 51. Kg4 {[%emt 0:00:06]} h5+ {[%emt 0:00:51]} 52. Kh4 {[%emt 0:00:01]} Rf3 {[%emt 0:00:02]} 53. Rc6+ {[%emt 0:00:23]} Kf5 {[%emt 0:00:08]} 54. Rc5+ {[%emt 0:00:03]} Kxf4 {[%emt 0:00:10]} 55. Rf5+ {[%emt 0:00:03]} Kxf5 {[%emt 0:00:05]} 0-1

[Event "RUS-ch Men Rapid 2019"]
[Site "Sochi"]
[Date "2019.10.16"]
[Round "11.8"]
[White "Faizrakhmanov, Ramil"]
[Black "Moiseenko, Vadim"]
[Result "0-1"]
[ECO "A46"]
[WhiteElo "2434"]
[BlackElo "2532"]
[Annotator "ChessBase"]
[PlyCount "76"]
[EventDate "2019.10.15"]
[EventType "swiss"]
[EventCountry "RUS"]
[SourceTitle "playchess.com"]
[Source "ChessBase"]
[SourceQuality "1"]
[TimeControl "900+10"]

1. d4 {[%emt 0:00:00]} Nf6 {[%emt 0:00:44]} 2. Nf3 {[%emt 0:00:00]} c5 {[%emt 0:00:01]} 3. e3 {[%emt 0:00:02]} e6 {[%emt 0:00:05]} 4. Bd3 {[%emt 0:00:16]} d5 {[%emt 0:00:12]} 5. c4 {[%emt 0:00:17]} dxc4 {[%emt 0:00:06]} 6. Bxc4 {[%emt 0:00:02]} a6 {[%emt 0:00:18]} 7. dxc5 {[%emt 0:00:29]} Qxd1+ {[%emt 0:00:05]} 8. Kxd1 {[%emt 0:00:02]} Bxc5 {[%emt 0:00:02]} 9. Ke2 {[%emt 0:00:05]} Nc6 {[%emt 0:00:28]} 10. Nbd2 {[%emt 0:00:10]} b5 {[%emt 0:00:10]} 11. Bd3 {[%emt 0:00:09]} Bb7 {[%emt 0:00:11]} 12. Nb3 {[%emt 0:00:34]} Bd6 {[%emt 0:00:26]} 13. Bd2 {[%emt 0:00:32]} Nb4 {[%emt 0:00:30]} 14. Bb1 {[%emt 0:01:18]} Bd5 {[%emt 0:00:50]} 15. Bxb4 {[%emt 0:00:27]} Bxb4 {[%emt 0:00:04]} 16. Rc1 {[%emt 0:00:34]} O-O {[%emt 0:00:45]} 17. Bd3 {[%emt 0:00:28]} Rfe8 {[%emt 0:01:26]} 18. a3 {[%emt 0:00:39]} Bf8 {[%emt 0:00:03]} 19. Na5 {[%emt 0:00:42]} e5 {[%emt 0:00:10]} 20. Ne1 {[%emt 0:00:34]} Bd6 {[%emt 0:00:51]} 21. Bc2 {[%emt 0:00:43]} Rac8 {[%emt 0:01:30]} 22. Bf5 {[%emt 0:01:02]} Rc7 {[%emt 0:00:19]} 23. Nf3 {[%emt 0:01:26]} g6 {[%emt 0:00:36]} 24. Bh3 {[%emt 0:00:10]} Ne4 {[%emt 0:00:40]} 25. Ne1 {[%emt 0:02:12]} f5 {[%emt 0:00:45]} 26. Rd1 {[%emt 0:01:34]} Nf6 {[%emt 0:00:12]} 27. Rd2 {[%emt 0:00:24]} Rd7 {[%emt 0:00:45]} 28. Rad1 {[%emt 0:03:39]} Bc7 {[%emt 0:00:07]} 29. b4 {[%emt 0:00:26]} Ne4 {[%emt 0:02:24]} 30. Rc2 {[%emt 0:00:13]} Bxa5 {[%emt 0:00:01]} 31. bxa5 {[%emt 0:00:01]} Bc4+ {[%emt 0:00:05]} 32. Rxc4 {[%emt 0:00:05]} Rxd1 {[%emt 0:00:02]} 33. Rxe4 {[%emt 0:01:02]} Rxe1+ {[%emt 0:00:09]} 34. Kxe1 {[%emt 0:00:01]} fxe4 {[%emt 0:00:01]} 35. Bg4 {[%emt 0:00:07]} Rd8 {[%emt 0:00:18]} 36. Be2 {[%emt 0:00:05]} Kf8 {[%emt 0:00:09]} 37. a4 {[%emt 0:00:16]} bxa4 {[%emt 0:00:06]} 38. Bxa6 {[%emt 0:00:03]} Rd5 {[%emt 0:00:41]} 0-1

[Event "RUS-ch Men Rapid 2019"]
[Site "Sochi"]
[Date "2019.10.16"]
[Round "11.9"]
[White "Ulybin, Mikhail"]
[Black "Sakaev, Konstantin"]
[Result "1/2-1/2"]
[ECO "B50"]
[WhiteElo "2455"]
[BlackElo "2595"]
[Annotator "ChessBase"]
[PlyCount "36"]
[EventDate "2019.10.15"]
[EventType "swiss"]
[EventCountry "RUS"]
[SourceTitle "playchess.com"]
[Source "ChessBase"]
[SourceQuality "1"]
[TimeControl "900+10"]

1. e4 {[%emt 0:00:11]} c5 {[%emt 0:00:00]} 2. Nf3 {[%emt 0:00:05]} d6 {[%emt 0:00:00]} 3. Bc4 {[%emt 0:00:17]} Nf6 {[%emt 0:00:00]} 4. d3 {[%emt 0:00:05]} g6 {[%emt 0:00:00]} 5. c3 {[%emt 0:00:09]} Bg7 {[%emt 0:00:05]} 6. O-O {[%emt 0:00:17]} O-O {[%emt 0:00:02]} 7. h3 {[%emt 0:00:17]} Nc6 {[%emt 0:00:02]} 8. Bb3 {[%emt 0:00:23]} b5 {[%emt 0:00:04]} 9. Re1 {[%emt 0:00:11]} b4 {[%emt 0:00:53]} 10. d4 {[%emt 0:00:41]} bxc3 {[%emt 0:00:21]} 11. Nxc3 {[%emt 0:00:33]} cxd4 {[%emt 0:00:21]} 12. Nxd4 {[%emt 0:00:08]} Nxd4 {[%emt 0:00:03]} 13. Qxd4 {[%emt 0:00:04]} Nd7 {[%emt 0:00:17]} 14. Qe3 {[%emt 0:01:02]} Nc5 {[%emt 0:00:16]} 15. Bc4 {[%emt 0:00:56]} Be6 {[%emt 0:02:00]} 16. Bxe6 {[%emt 0:00:21]} fxe6 {[%emt 0:00:52]} 17. Qe2 {[%emt 0:01:21]} Rb8 {[%emt 0:03:12]} 18. Be3 {[%emt 0:02:01]} Qa5 {[%emt 0:00:13]} 1/2-1/2

[Event "RUS-ch Men Rapid 2019"]
[Site "Sochi"]
[Date "2019.10.16"]
[Round "11.10"]
[White "Triapishko, Alexandr"]
[Black "Glek, Igor"]
[Result "1-0"]
[ECO "A05"]
[WhiteElo "2514"]
[BlackElo "2467"]
[Annotator "RC"]
[PlyCount "121"]
[EventDate "2019.10.15"]
[EventType "swiss"]
[EventCountry "RUS"]
[SourceTitle "playchess.com"]
[Source "ChessBase"]
[SourceQuality "1"]
[TimeControl "900+10"]

1. Nf3 {[%emt 0:01:09]} Nf6 {[%emt 0:00:00]} 2. g3 {[%emt 0:00:10]} g6 {[%emt 0:00:04]} 3. b3 {[%emt 0:00:16]} Bg7 {[%emt 0:00:01]} 4. Bb2 {[%emt 0:00:02]} d6 {[%emt 0:01:18]} 5. d4 {[%emt 0:00:13]} c5 {[%emt 0:00:09]} 6. Bg2 {[%emt 0:01:17]} cxd4 {[%emt 0:00:11]} 7. Nxd4 {[%emt 0:00:03]} d5 {[%emt 0:00:02]} 8. O-O {[%emt 0:01:34]} O-O {[%emt 0:00:08]} 9. c4 {[%emt 0:00:29]} dxc4 {[%emt 0:01:00]} 10. bxc4 {[%emt 0:00:21]} Qb6 {[%emt 0:00:02]} 11. Qb3 {[%emt 0:00:28]} Nfd7 {[%emt 0:00:09]} 12. e3 {[%emt 0:00:13]} Nc6 {[%emt 0:01:24]} 13. Nc3 {[%emt 0:01:47]} Na5 {[%emt 0:05:18]} 14. Qc2 {[%emt 0:01:29]} Nxc4 {[%emt 0:00:23]} 15. Nd5 {[%emt 0:00:26]} Qxb2 {[%emt 0:00:07]} 16. Nxe7+ {[%emt 0:00:19]} Kh8 {[%emt 0:00:01]} 17. Qxc4 {[%emt 0:00:02]} Qa3 {[%emt 0:02:19]} 18. Nxc8 {[%emt 0:01:46]} Raxc8 {[%emt 0:00:11]} 19. Qb3 {[%emt 0:00:12]} Qa5 {[%emt 0:03:12]} 20. Qxb7 {[%emt 0:00:38]} Nc5 {[%emt 0:00:01]} 21. Qd5 {[%emt 0:00:42]} Qd8 {[%emt 0:00:43]} 22. Rac1 {[%emt 0:01:16]} Qxd5 {[%emt 0:00:59]} 23. Bxd5 {[%emt 0:00:03]} f5 {[%emt 0:00:15]} 24. Nb5 {[%emt 0:00:46]} Nd3 {[%emt 0:00:03]} 25. Rxc8 {[%emt 0:01:14]} Rxc8 {[%emt 0:00:18]} 26. Rd1 {[%emt 0:00:36]} a6 {[%emt 0:00:15]} 27. Nd6 {[%emt 0:00:20]} Rc1 {[%emt 0:00:15]} 28. Rxc1 {[%emt 0:00:14]} Nxc1 {[%emt 0:00:01]} 29. Nf7+ {[%emt 0:00:38]} Kg8 {[%emt 0:00:01]} 30. Kf1 {[%emt 0:00:18]} Bc3 {[%emt 0:00:10]} 31. Bc4 {[%emt 0:00:18]} Kg7 {[%emt 0:00:05]} 32. Ng5 {[%emt 0:00:35]} a5 {[%emt 0:00:07]} 33. a4 {[%emt 0:00:11]} h6 {[%emt 0:00:07]} 34. Ne6+ {[%emt 0:00:05]} Kf6 {[%emt 0:00:01]} 35. Nf4 {[%emt 0:00:06]} Bd2 {[%emt 0:00:13]} 36. h3 {[%emt 0:00:25]} g5 {[%emt 0:00:15]} 37. Nd5+ {[%emt 0:00:11]} Ke5 {[%emt 0:00:14]} 38. Ne7 {[%emt 0:00:04]} Kf6 {[%emt 0:00:11]} 39. Nc6 {[%emt 0:00:11]} h5 {[%emt 0:00:18]} 40. Kg2 {[%emt 0:00:16]} Bc3 {[%emt 0:00:41]} 41. h4 {[%emt 0:00:11]} gxh4 {[%emt 0:00:12]} 42. gxh4 {[%emt 0:00:02]} Bd2 {[%emt 0:00:08]} 43. Kf3 {[%emt 0:00:07]} Be1 {[%emt 0:00:01]} 44. Nd4 {[%emt 0:00:10]} Ke5 {[%emt 0:00:07]} 45. Ne6 {[%emt 0:00:22]} Kd6 {[%emt 0:00:38]} 46. Ng7 {[%emt 0:00:07]} Kc5 {[%emt 0:00:01]} 47. Bb5 {[%emt 0:00:14]} Na2 {[%emt 0:00:05]} 48. Nxf5 Nc3 49. Be8 {[%emt 0:00:18]} Kb4 {[%emt 0:00:04]} 50. Nd4 {[%emt 0:00:04]} Bd2 {[%emt 0:00:07]} 51. Bxh5 {[%emt 0:00:15]} Kxa4 {[%emt 0:00:05]} 52. Be8+ {[%emt 0:00:07]} Kb4 {[%emt 0:00:02]} 53. h5 {[%emt 0:00:07]} Nd5 {[%emt 0:00:00]} 54. h6 {[%emt 0:00:12]} Nf6 {[%emt 0:00:01]} 55. Bg6 {[%emt 0:00:06]} a4 {[%emt 0:00:03]} 56. h7 {[%emt 0:00:04]} Nxh7 {[%emt 0:00:03]} 57. Bxh7 {[%emt 0:00:02]} a3 {[%emt 0:00:03]} 58. Bg8 {[%emt 0:00:04]} Kc3 {[%emt 0:00:06]} 59. Ke2 {[%emt 0:00:09]} Bc1 {[%emt 0:00:01]} 60. Kd1 {[%emt 0:00:15]} Kb2 {[%emt 0:00:01]} 61. Nb5 {[%emt 0:00:10]} 1-0

[Event "RUS-ch Men Rapid 2019"]
[Site "Sochi"]
[Date "2019.10.16"]
[Round "11.11"]
[White "Savchenko, Boris"]
[Black "Tekeyev, Zaur"]
[Result "1/2-1/2"]
[ECO "B32"]
[WhiteElo "2581"]
[BlackElo "2384"]
[Annotator "ChessBase"]
[PlyCount "92"]
[EventDate "2019.10.15"]
[EventType "swiss"]
[EventCountry "RUS"]
[SourceTitle "playchess.com"]
[Source "ChessBase"]
[SourceQuality "1"]
[TimeControl "900+10"]

1. e4 {[%emt 0:00:00]} c5 {[%emt 0:00:00]} 2. Nf3 {[%emt 0:00:00]} Nc6 {[%emt 0:00:00]} 3. d4 {[%emt 0:00:00]} cxd4 {[%emt 0:00:00]} 4. Nxd4 {[%emt 0:00:00]} e5 {[%emt 0:00:00]} 5. Nb5 {[%emt 0:00:03]} d6 {[%emt 0:00:00]} 6. N1c3 {[%emt 0:00:09]} a6 {[%emt 0:00:02]} 7. Na3 {[%emt 0:00:01]} Be7 {[%emt 0:00:06]} 8. Nc4 {[%emt 0:00:08]} b5 {[%emt 0:00:02]} 9. Ne3 {[%emt 0:00:02]} Nf6 {[%emt 0:00:01]} 10. Bd3 {[%emt 0:01:48]} O-O {[%emt 0:00:03]} 11. O-O {[%emt 0:00:03]} Rb8 {[%emt 0:00:01]} 12. a3 {[%emt 0:01:59]} Nd4 {[%emt 0:00:07]} 13. h3 {[%emt 0:00:08]} Ne6 {[%emt 0:01:08]} 14. Nf5 {[%emt 0:01:40]} Nc5 {[%emt 0:00:16]} 15. Nxe7+ {[%emt 0:00:03]} Qxe7 {[%emt 0:00:01]} 16. Bg5 {[%emt 0:00:02]} Bb7 {[%emt 0:01:39]} 17. Qf3 {[%emt 0:00:19]} Ncd7 {[%emt 0:01:24]} 18. Qg3 {[%emt 0:00:56]} Qe6 {[%emt 0:00:55]} 19. Rae1 {[%emt 0:00:45]} Kh8 {[%emt 0:02:40]} 20. Qh4 {[%emt 0:00:14]} h6 {[%emt 0:00:46]} 21. Be3 {[%emt 0:02:01]} Nh7 {[%emt 0:00:55]} 22. f4 {[%emt 0:00:25]} exf4 {[%emt 0:00:15]} 23. Qxf4 {[%emt 0:00:02]} Ne5 {[%emt 0:00:13]} 24. Ne2 {[%emt 0:01:17]} Rbe8 {[%emt 0:03:06]} 25. Bd4 {[%emt 0:00:14]} d5 {[%emt 0:01:24]} 26. Ng3 {[%emt 0:00:32]} Nxd3 {[%emt 0:00:31]} 27. cxd3 {[%emt 0:00:04]} dxe4 {[%emt 0:00:16]} 28. Nf5 {[%emt 0:01:33]} f6 {[%emt 0:00:14]} 29. Nd6 {[%emt 0:01:08]} Qd5 {[%emt 0:00:43]} 30. Bc3 exd3 {[%emt 0:00:09]} 31. Nxb7 {[%emt 0:03:32]} Qxb7 {[%emt 0:00:08]} 32. Rxe8 {[%emt 0:00:02]} Rxe8 {[%emt 0:00:01]} 33. Qd6 {[%emt 0:00:01]} Qe7 {[%emt 0:02:22]} 34. Qxd3 {[%emt 0:00:12]} Ng5 {[%emt 0:00:52]} 35. Qg6 {[%emt 0:00:03]} Ne4 {[%emt 0:00:09]} 36. Re1 {[%emt 0:00:05]} Qc5+ {[%emt 0:00:18]} 37. Kh2 {[%emt 0:00:06]} Qd6+ {[%emt 0:00:05]} 38. Kg1 {[%emt 0:00:06]} Qc5+ {[%emt 0:00:13]} 39. Kh2 {[%emt 0:00:02]} Qd6+ {[%emt 0:00:14]} 40. Kg1 {[%emt 0:00:03]} Qc5+ {[%emt 0:00:08]} 41. Kh2 {[%emt 0:00:03]} Qd6+ {[%emt 0:00:09]} 42. Kg1 {[%emt 0:00:02]} Qc5+ {[%emt 0:00:08]} 43. Kh2 {[%emt 0:00:03]} Qd6+ {[%emt 0:00:02]} 44. Kg1 {[%emt 0:00:02]} Qc5+ {[%emt 0:00:05]} 45. Kh2 {[%emt 0:00:07]} Qd6+ {[%emt 0:00:09]} 46. Kg1 Qe6 1/2-1/2

[Event "RUS-ch Men Rapid 2019"]
[Site "Sochi"]
[Date "2019.10.16"]
[Round "11.14"]
[White "Bryakin, Mikhail"]
[Black "Grachev, Boris"]
[Result "0-1"]
[ECO "A50"]
[WhiteElo "2440"]
[BlackElo "2621"]
[Annotator "RC"]
[PlyCount "82"]
[EventDate "2019.10.15"]
[EventType "swiss"]
[EventCountry "RUS"]
[SourceTitle "playchess.com"]
[Source "ChessBase"]
[SourceQuality "1"]
[TimeControl "900+10"]

1. d4 {[%emt 0:00:00]} Nf6 {[%emt 0:00:01]} 2. c4 {[%emt 0:00:00]} b6 {[%emt 0:00:04]} 3. Nc3 {[%emt 0:00:00]} Bb7 {[%emt 0:00:02]} 4. d5 {[%emt 0:00:00]} e6 {[%emt 0:00:02]} 5. e4 {[%emt 0:00:01]} Bb4 {[%emt 0:00:32]} 6. Bd3 {[%emt 0:00:02]} exd5 {[%emt 0:00:32]} 7. exd5 {[%emt 0:00:09]} O-O {[%emt 0:00:17]} 8. Nge2 {[%emt 0:00:09]} c6 {[%emt 0:02:48]} 9. O-O {[%emt 0:00:18]} h6 {[%emt 0:00:06]} 10. a3 {[%emt 0:00:47]} Bxc3 {[%emt 0:00:07]} 11. Nxc3 {[%emt 0:00:02]} cxd5 {[%emt 0:00:14]} 12. cxd5 {[%emt 0:00:00]} Na6 {[%emt 0:01:01]} 13. Bc4 {[%emt 0:00:43]} Rc8 {[%emt 0:00:13]} 14. Ba2 {[%emt 0:00:05]} Nc5 {[%emt 0:00:07]} 15. Bf4 {[%emt 0:00:07]} Ba6 {[%emt 0:00:08]} 16. Bd6 {[%emt 0:00:25]} Bxf1 {[%emt 0:00:21]} 17. Bxf8 {[%emt 0:00:08]} Qxf8 {[%emt 0:00:11]} 18. Qxf1 {[%emt 0:00:07]} Nce4 {[%emt 0:00:34]} 19. Nxe4 {[%emt 0:00:05]} Nxe4 {[%emt 0:00:01]} 20. Qd3 {[%emt 0:00:04]} Re8 {[%emt 0:00:51]} 21. Rc1 {[%emt 0:00:16]} Qd6 {[%emt 0:00:26]} 22. g3 {[%emt 0:00:49]} Qf6 {[%emt 0:00:09]} 23. Rc2 {[%emt 0:00:15]} Nc5 {[%emt 0:00:09]} 24. Qc3 {[%emt 0:00:39]} Qxc3 {[%emt 0:00:23]} 25. bxc3 {[%emt 0:00:26]} Re1+ {[%emt 0:00:23]} 26. Kg2 {[%emt 0:00:01]} Kf8 {[%emt 0:00:08]} 27. Kf3 {[%emt 0:01:21]} g5 {[%emt 0:00:49]} 28. h4 {[%emt 0:00:16]} gxh4 {[%emt 0:00:07]} 29. gxh4 {[%emt 0:00:01]} Re4 {[%emt 0:00:04]} 30. Re2 {[%emt 0:00:34]} Rxh4 {[%emt 0:00:28]} 31. d6 {[%emt 0:00:04]} Ne6 {[%emt 0:00:01]} 32. Bd5 {[%emt 0:00:30]} Rh3+ {[%emt 0:00:18]} 33. Ke4 {[%emt 0:00:01]} Rxc3 {[%emt 0:00:15]} 34. f4 {[%emt 0:00:03]} Rxa3 {[%emt 0:01:08]} 35. Ke5 {[%emt 0:00:13]} Ra5 {[%emt 0:00:29]} 36. Rd2 {[%emt 0:00:01]} Rc5 {[%emt 0:02:33]} 37. f5 {[%emt 0:01:07]} Ng7 {[%emt 0:00:30]} 38. f6 {[%emt 0:01:09]} Ne8 {[%emt 0:00:07]} 39. Rb2 {[%emt 0:02:24]} Nxf6 {[%emt 0:00:42]} 40. Kxf6 {[%emt 0:00:02]} Rxd5 {[%emt 0:00:02]} 41. Rxb6 {[%emt 0:00:01]} Rf5+ {[%emt 0:00:02]} 0-1